[Event "*** Titled Tuesday Blitz"]
[Site "Chess.com"]
[Date "2019.07.02"]
[Round "1"]
[White "WildTricks"]
[Black "SmoothAsAHedgehog"]
[Result "1-0"]
[WhiteElo "2314"]
[BlackElo "2618"]
[TimeControl "180+2"]
[EndTime "13:09:34 PDT"]
[Termination "WildTricks won by resignation"]

1. e4 {[%clk 0:03:00.7]} 1... c6 {[%clk 0:03:01]} 2. d4 {[%clk 0:03:01.1]} 2...
d5 {[%clk 0:03:02.4]} 3. Nc3 {[%clk 0:03:02.7]} 3... dxe4 {[%clk 0:03:03.4]} 4.
Nxe4 {[%clk 0:03:04.6]} 4... Nd7 {[%clk 0:03:04.9]} 5. Nf3 {[%clk 0:03:03.8]}
5... Ngf6 {[%clk 0:03:06]} 6. Ng3 {[%clk 0:03:05.4]} 6... Nb6 {[%clk 0:03:06.7]}
7. Bd3 {[%clk 0:03:05.2]} 7... Bg4 {[%clk 0:02:56.9]} 8. c3 {[%clk 0:03:05]}
8... e6 {[%clk 0:02:53.9]} 9. h3 {[%clk 0:03:05.5]} 9... Bxf3 {[%clk 0:02:54.8]}
10. Qxf3 {[%clk 0:03:07.4]} 10... Be7 {[%clk 0:02:53.1]} 11. Qe2 {[%clk
0:03:05.6]} 11... O-O {[%clk 0:02:49.6]} 12. O-O {[%clk 0:03:06.1]} 12... Rc8
{[%clk 0:02:33]} 13. Ne4 {[%clk 0:03:01.4]} 13... Nbd5 {[%clk 0:02:27]} 14. c4
{[%clk 0:02:54.4]} 14... Nb4 {[%clk 0:02:23.5]} 15. Be3 {[%clk 0:02:45.5]} 15...
Nxd3 {[%clk 0:02:20.5]} 16. Qxd3 {[%clk 0:02:47.4]} 16... Qa5 {[%clk 0:02:19.1]}
17. Rfd1 {[%clk 0:02:36.5]} 17... Rfd8 {[%clk 0:02:19.1]} 18. Nc3 {[%clk
0:02:27.3]} 18... Rd7 {[%clk 0:02:02.3]} 19. a3 {[%clk 0:02:24.4]} 19... Rcd8
{[%clk 0:02:01.6]} 20. b4 {[%clk 0:02:24.6]} 20... Qh5 {[%clk 0:01:57.8]} 21.
Qc2 {[%clk 0:02:08.9]} 21... Qg6 {[%clk 0:01:34.6]} 22. Qxg6 {[%clk 0:02:05.8]}
22... hxg6 {[%clk 0:01:36.5]} 23. Kf1 {[%clk 0:02:04.1]} 23... Ne8 {[%clk
0:01:16.4]} 24. Ke2 {[%clk 0:02:03.7]} 24... Nd6 {[%clk 0:01:14.9]} 25. c5
{[%clk 0:01:39.7]} 25... Nf5 {[%clk 0:01:13.9]} 26. g4 {[%clk 0:01:10]} 26...
Nxd4+ {[%clk 0:01:12.5]} 27. Bxd4 {[%clk 0:01:10.3]} 27... Rxd4 {[%clk
0:01:14.4]} 28. Rxd4 {[%clk 0:01:11.6]} 28... Rxd4 {[%clk 0:01:15]} 29. Rd1
{[%clk 0:01:13]} 29... Rxd1 {[%clk 0:01:12.2]} 30. Nxd1 {[%clk 0:00:56.5]} 30...
f5 {[%clk 0:00:50.6]} 31. Kd3 {[%clk 0:00:49.9]} 31... Bh4 {[%clk 0:00:44.8]}
32. f3 {[%clk 0:00:44.9]} 32... Kf7 {[%clk 0:00:36.9]} 33. Ne3 {[%clk
0:00:45.2]} 33... Bg3 {[%clk 0:00:31.4]} 34. Nc4 {[%clk 0:00:45.2]} 34... Kf6
{[%clk 0:00:26.5]} 35. Na5 {[%clk 0:00:44.1]} 35... Bc7 {[%clk 0:00:15.2]} 36.
Nxb7 {[%clk 0:00:41.9]} 36... Ke7 {[%clk 0:00:16]} 37. a4 {[%clk 0:00:36.3]}
37... a6 {[%clk 0:00:16.6]} 38. Kc4 {[%clk 0:00:35.1]} 38... e5 {[%clk
0:00:17.7]} 39. b5 {[%clk 0:00:20.9]} 39... axb5+ {[%clk 0:00:18.7]} 40. axb5
{[%clk 0:00:22.8]} 40... cxb5+ {[%clk 0:00:20]} 41. Kxb5 {[%clk 0:00:24.2]}
41... Kd7 {[%clk 0:00:20.6]} 42. c6+ {[%clk 0:00:24.3]} 42... Ke6 {[%clk
0:00:21.5]} 43. Nc5+ {[%clk 0:00:24.8]} 43... Kd5 {[%clk 0:00:21.7]} 44. Na6
{[%clk 0:00:24.7]} 44... Kd6 {[%clk 0:00:22.5]} 45. Nxc7 {[%clk 0:00:22]} 45...
Kxc7 {[%clk 0:00:24.4]} 46. Kc5 {[%clk 0:00:21.5]} 46... e4 {[%clk 0:00:25.7]}
47. fxe4 {[%clk 0:00:22.5]} 47... fxe4 {[%clk 0:00:27]} 48. Kd4 {[%clk
0:00:23.8]} 48... Kxc6 {[%clk 0:00:28.3]} 49. Kxe4 {[%clk 0:00:25.1]} 49... Kd6
{[%clk 0:00:29.8]} 50. Kf4 {[%clk 0:00:26.1]} 50... Ke6 {[%clk 0:00:31]} 51. Kg5
{[%clk 0:00:27.4]} 51... Kf7 {[%clk 0:00:30.6]} 52. h4 {[%clk 0:00:28.8]} 52...
Kf8 {[%clk 0:00:30.9]} 53. Kxg6 {[%clk 0:00:30.7]} 53... Kg8 {[%clk 0:00:31.9]}
54. h5 {[%clk 0:00:32.1]} 54... Kh8 {[%clk 0:00:33]} 55. g5 {[%clk 0:00:32.2]}
55... Kg8 {[%clk 0:00:34.2]} 56. h6 {[%clk 0:00:30.9]} 56... gxh6 {[%clk
0:00:33.8]} 57. Kxh6 {[%clk 0:00:32.8]} 57... Kh8 {[%clk 0:00:32.5]} 58. g6
{[%clk 0:00:33.7]} 58... Kg8 {[%clk 0:00:34]} 59. g7 {[%clk 0:00:35]} 59... Kf7
{[%clk 0:00:35]} 60. Kh7 {[%clk 0:00:36.6]} 1-0

[Event "*** Titled Tuesday Blitz"]
[Site "Chess.com"]
[Date "2019.07.02"]
[Round "1"]
[White "Maili15"]
[Black "PabloZarnicki"]
[Result "0-1"]
[WhiteElo "2261"]
[BlackElo "2612"]
[TimeControl "180+2"]
[EndTime "13:09:42 PDT"]
[Termination "PabloZarnicki won by resignation"]

1. d4 {[%clk 0:03:01.9]} 1... Nf6 {[%clk 0:02:56]} 2. c4 {[%clk 0:03:03.2]} 2...
e6 {[%clk 0:02:56.7]} 3. Nc3 {[%clk 0:03:04.6]} 3... Bb4 {[%clk 0:02:57.3]} 4.
Qc2 {[%clk 0:03:05.2]} 4... O-O {[%clk 0:02:56.9]} 5. a3 {[%clk 0:03:06.6]} 5...
Bxc3+ {[%clk 0:02:58.5]} 6. Qxc3 {[%clk 0:03:08.5]} 6... b6 {[%clk 0:03:00]} 7.
Bg5 {[%clk 0:03:09]} 7... Ba6 {[%clk 0:03:00.1]} 8. Nf3 {[%clk 0:03:05.2]} 8...
d6 {[%clk 0:02:59.1]} 9. g3 {[%clk 0:03:05.4]} 9... Nbd7 {[%clk 0:02:59.5]} 10.
Bg2 {[%clk 0:03:06.4]} 10... h6 {[%clk 0:02:55.3]} 11. Bf4 {[%clk 0:02:57.7]}
11... c5 {[%clk 0:02:55.6]} 12. O-O {[%clk 0:02:42]} 12... Rc8 {[%clk
0:02:45.9]} 13. dxc5 {[%clk 0:02:21.4]} 13... Nxc5 {[%clk 0:02:35]} 14. b3
{[%clk 0:02:09.8]} 14... d5 {[%clk 0:02:27.1]} 15. Rfd1 {[%clk 0:02:03.8]} 15...
Qe7 {[%clk 0:02:23]} 16. Qb2 {[%clk 0:01:53.9]} 16... Rfd8 {[%clk 0:02:18.8]}
17. cxd5 {[%clk 0:01:51.2]} 17... Nxd5 {[%clk 0:02:18]} 18. Be5 {[%clk 0:01:48]}
18... f6 {[%clk 0:02:09.5]} 19. Bd4 {[%clk 0:01:48.6]} 19... Ne4 {[%clk
0:01:59]} 20. Rac1 {[%clk 0:01:39.6]} 20... e5 {[%clk 0:01:59.1]} 21. Rxc8
{[%clk 0:01:27.5]} 21... Bxc8 {[%clk 0:02:01]} 22. Nxe5 {[%clk 0:00:47.5]} 22...
fxe5 {[%clk 0:00:43]} 23. Bxe5 {[%clk 0:00:49.4]} 23... Ndc3 {[%clk 0:00:33.8]}
24. Rxd8+ {[%clk 0:00:48.1]} 24... Qxd8 {[%clk 0:00:34.9]} 25. Bxc3 {[%clk
0:00:48.7]} 25... Qd1+ {[%clk 0:00:35.7]} 26. Bf1 {[%clk 0:00:49.5]} 26... Bh3
{[%clk 0:00:36.8]} 27. Qa1 {[%clk 0:00:41.2]} 27... Qxf1+ {[%clk 0:00:36.3]} 28.
Qxf1 {[%clk 0:00:41]} 28... Bxf1 {[%clk 0:00:38.2]} 29. Bxg7 {[%clk 0:00:39.9]}
29... Bxe2 {[%clk 0:00:32]} 30. Bxh6 {[%clk 0:00:40.2]} 30... Bf3 {[%clk
0:00:26.7]} 31. h3 {[%clk 0:00:38.5]} 31... a5 {[%clk 0:00:24.9]} 32. Be3 {[%clk
0:00:37.2]} 32... b5 {[%clk 0:00:26.3]} 33. Bb6 {[%clk 0:00:37]} 33... a4 {[%clk
0:00:17.9]} 34. bxa4 {[%clk 0:00:38.9]} 34... bxa4 {[%clk 0:00:19.7]} 35. g4
{[%clk 0:00:39.7]} 35... Kf7 {[%clk 0:00:20.7]} 36. Ba5 {[%clk 0:00:35.1]} 36...
Ke6 {[%clk 0:00:21.8]} 37. Bb4 {[%clk 0:00:36]} 37... Kd5 {[%clk 0:00:23]} 38.
Be7 {[%clk 0:00:28.9]} 38... Kc4 {[%clk 0:00:24.1]} 39. g5 {[%clk 0:00:29.6]}
39... Kd5 {[%clk 0:00:23]} 40. h4 {[%clk 0:00:29.8]} 40... Ke6 {[%clk
0:00:23.8]} 41. Bb4 {[%clk 0:00:29.8]} 41... Kf5 {[%clk 0:00:24.9]} 42. Be7
{[%clk 0:00:25.9]} 42... Kg6 {[%clk 0:00:24.7]} 43. Kh2 {[%clk 0:00:24.9]} 43...
Kh5 {[%clk 0:00:22.4]} 44. Kh3 {[%clk 0:00:25]} 44... Bg4+ {[%clk 0:00:18.3]}
45. Kg2 {[%clk 0:00:25.8]} 45... Nd2 {[%clk 0:00:19.2]} 46. Kg3 {[%clk
0:00:25.4]} 46... Ne4+ {[%clk 0:00:20.1]} 47. Kg2 {[%clk 0:00:25.3]} 47... Nc3
{[%clk 0:00:19]} 48. f3 {[%clk 0:00:24.7]} 48... Bf5 {[%clk 0:00:18.6]} 49. Kg3
{[%clk 0:00:25.2]} 49... Nd5 {[%clk 0:00:19.7]} 50. Bc5 {[%clk 0:00:24.9]} 50...
Be6 {[%clk 0:00:19.6]} 51. f4 {[%clk 0:00:25.8]} 51... Bf5 {[%clk 0:00:20.3]}
52. Bd6 {[%clk 0:00:25.6]} 52... Nc3 {[%clk 0:00:21.1]} 53. Be7 {[%clk
0:00:21.6]} 53... Bg4 {[%clk 0:00:21.6]} 54. g6 {[%clk 0:00:17]} 54... Ne2+
{[%clk 0:00:21]} 55. Kf2 {[%clk 0:00:17.2]} 55... Nxf4 {[%clk 0:00:22.1]} 56.
Ke3 {[%clk 0:00:17.8]} 56... Nxg6 {[%clk 0:00:22.5]} 57. Kd4 {[%clk 0:00:18.8]}
57... Nxe7 {[%clk 0:00:23.2]} 0-1

[Event "*** Titled Tuesday Blitz"]
[Site "Chess.com"]
[Date "2019.07.02"]
[Round "1"]
[White "pheonixking2000"]
[Black "Eliwood44"]
[Result "1/2-1/2"]
[WhiteElo "2680"]
[BlackElo "2345"]
[TimeControl "180+2"]
[EndTime "13:09:54 PDT"]
[Termination "Game drawn by agreement"]

1. e4 {[%clk 0:02:58]} 1... e5 {[%clk 0:03:01]} 2. Nf3 {[%clk 0:02:56.5]} 2...
Nc6 {[%clk 0:03:01]} 3. Bb5 {[%clk 0:02:57.4]} 3... a6 {[%clk 0:03:01.5]} 4. Ba4
{[%clk 0:02:57.7]} 4... d6 {[%clk 0:03:02.9]} 5. O-O {[%clk 0:02:56.6]} 5... Bd7
{[%clk 0:03:03.9]} 6. c3 {[%clk 0:02:56.2]} 6... Nf6 {[%clk 0:03:04.5]} 7. Re1
{[%clk 0:02:57.3]} 7... g6 {[%clk 0:03:05.2]} 8. d4 {[%clk 0:02:58.4]} 8... Bg7
{[%clk 0:03:05.9]} 9. Bxc6 {[%clk 0:02:45.8]} 9... Bxc6 {[%clk 0:03:06.6]} 10.
dxe5 {[%clk 0:02:47.2]} 10... Nxe4 {[%clk 0:03:07.5]} 11. exd6 {[%clk
0:02:45.2]} 11... O-O {[%clk 0:03:08.2]} 12. dxc7 {[%clk 0:02:39.9]} 12... Qxc7
{[%clk 0:03:09.1]} 13. Be3 {[%clk 0:02:41]} 13... Rad8 {[%clk 0:03:02.2]} 14.
Qc2 {[%clk 0:02:40.3]} 14... Rfe8 {[%clk 0:02:52.7]} 15. Nbd2 {[%clk 0:02:27.9]}
15... Nxd2 {[%clk 0:02:30.4]} 16. Nxd2 {[%clk 0:02:28.8]} 16... Qd7 {[%clk
0:02:19.6]} 17. Nf1 {[%clk 0:02:06.2]} 17... Qd5 {[%clk 0:02:16]} 18. f3 {[%clk
0:02:03]} 18... h5 {[%clk 0:02:14.4]} 19. Bb6 {[%clk 0:02:00.5]} 19... Rc8
{[%clk 0:02:09.1]} 20. Rxe8+ {[%clk 0:01:13.9]} 20... Rxe8 {[%clk 0:02:06.9]}
21. Qf2 {[%clk 0:01:15.8]} 21... Bb5 {[%clk 0:02:02.5]} 22. Ne3 {[%clk
0:01:02.8]} 22... Qe6 {[%clk 0:01:58.3]} 23. Nc2 {[%clk 0:01:00.5]} 23... Qd5
{[%clk 0:01:44.8]} 24. Nd4 {[%clk 0:00:51.6]} 24... Bd7 {[%clk 0:01:40.6]} 25.
a3 {[%clk 0:00:45.5]} 25... h4 {[%clk 0:01:38]} 26. h3 {[%clk 0:00:46.6]} 26...
Be5 {[%clk 0:01:36.8]} 27. Qxh4 {[%clk 0:00:31]} 27... Qd6 {[%clk 0:01:24.9]}
28. Ba7 {[%clk 0:00:32.1]} 28... Bg3 {[%clk 0:01:22.9]} 29. Qg5 {[%clk
0:00:25.1]} 29... Bf4 {[%clk 0:01:17.9]} 30. Qa5 {[%clk 0:00:17.4]} 30... Be3+
{[%clk 0:01:16]} 31. Kh1 {[%clk 0:00:18.7]} 31... Bxh3 {[%clk 0:01:10.3]} 32.
Qa4 {[%clk 0:00:16]} 32... Ra8 {[%clk 0:00:50.6]} 33. gxh3 {[%clk 0:00:11.7]}
33... Qg3 {[%clk 0:00:49.1]} 34. Qc2 {[%clk 0:00:12.8]} 34... Qxh3+ {[%clk
0:00:46.1]} 35. Qh2 {[%clk 0:00:13.8]} 35... Qxh2+ {[%clk 0:00:43.4]} 36. Kxh2
{[%clk 0:00:15.7]} 36... Rxa7 {[%clk 0:00:44.9]} 37. Re1 {[%clk 0:00:15.5]}
37... Bxd4 {[%clk 0:00:45.5]} 38. Re8+ {[%clk 0:00:15.8]} 38... Kg7 {[%clk
0:00:46.2]} 39. cxd4 {[%clk 0:00:17.7]} 39... b5 {[%clk 0:00:47.6]} 40. Re4
{[%clk 0:00:08.2]} 40... Rc7 {[%clk 0:00:46.6]} 41. Re2 {[%clk 0:00:09.2]} 41...
Rd7 {[%clk 0:00:45.6]} 42. Rd2 {[%clk 0:00:07.3]} 42... Kf6 {[%clk 0:00:46.4]}
43. Kg3 {[%clk 0:00:08.2]} 43... Kf5 {[%clk 0:00:47.4]} 44. Rd1 {[%clk 0:00:07]}
44... f6 {[%clk 0:00:46.4]} 45. Kf2 {[%clk 0:00:07.9]} 45... Ke6 {[%clk
0:00:47.1]} 46. Ke3 {[%clk 0:00:08]} 46... Kd5 {[%clk 0:00:48.5]} 47. Rc1 {[%clk
0:00:08]} 47... Re7+ {[%clk 0:00:45.5]} 48. Kd3 {[%clk 0:00:09.6]} 48... Kd6
{[%clk 0:00:45.8]} 49. Rc8 {[%clk 0:00:10.4]} 49... g5 {[%clk 0:00:46]} 50. Ra8
{[%clk 0:00:11.2]} 50... f5 {[%clk 0:00:39.1]} 51. Rxa6+ {[%clk 0:00:12.3]}
51... Kd7 {[%clk 0:00:39.4]} 52. Ra7+ {[%clk 0:00:10]} 52... Kd6 {[%clk
0:00:39.6]} 53. Rxe7 {[%clk 0:00:10]} 53... Kxe7 {[%clk 0:00:41.5]} 54. b3
{[%clk 0:00:09.6]} 54... Kd6 {[%clk 0:00:40.9]} 55. Kc3 {[%clk 0:00:08.9]} 55...
Kd5 {[%clk 0:00:39.5]} 56. a4 {[%clk 0:00:09.5]} 56... bxa4 {[%clk 0:00:40.2]}
57. bxa4 {[%clk 0:00:11.4]} 57... g4 {[%clk 0:00:27.2]} 58. fxg4 {[%clk
0:00:10.6]} 58... fxg4 {[%clk 0:00:29.1]} 59. Kd3 {[%clk 0:00:12]} 59... g3
{[%clk 0:00:30.4]} 60. Ke3 {[%clk 0:00:13.5]} 60... g2 {[%clk 0:00:31.9]} 61.
Kf2 {[%clk 0:00:14.8]} 61... Kxd4 {[%clk 0:00:33.1]} 1/2-1/2

[Event "*** Titled Tuesday Blitz"]
[Site "Chess.com"]
[Date "2019.07.02"]
[Round "1"]
[White "Micki-taryan"]
[Black "2nd_life"]
[Result "1/2-1/2"]
[WhiteElo "2953"]
[BlackElo "2471"]
[TimeControl "180+2"]
[EndTime "13:09:58 PDT"]
[Termination "Game drawn - insufficient material"]

1. Nf3 {[%clk 0:02:59]} 1... Nf6 {[%clk 0:02:59.2]} 2. d4 {[%clk 0:02:58]} 2...
g6 {[%clk 0:02:58.5]} 3. Nc3 {[%clk 0:02:58.5]} 3... Bg7 {[%clk 0:02:56]} 4. e4
{[%clk 0:02:58.9]} 4... d5 {[%clk 0:02:56]} 5. e5 {[%clk 0:02:50.9]} 5... Ne4
{[%clk 0:02:56.6]} 6. Bd3 {[%clk 0:02:50.3]} 6... Nxc3 {[%clk 0:02:50.3]} 7.
bxc3 {[%clk 0:02:52.2]} 7... c5 {[%clk 0:02:51.5]} 8. O-O {[%clk 0:02:53]} 8...
Nc6 {[%clk 0:02:42.4]} 9. h3 {[%clk 0:02:53.3]} 9... h6 {[%clk 0:02:30.2]} 10.
Re1 {[%clk 0:02:51.9]} 10... c4 {[%clk 0:02:27.4]} 11. Bf1 {[%clk 0:02:51.8]}
11... Be6 {[%clk 0:02:26.2]} 12. a4 {[%clk 0:02:50.9]} 12... Qd7 {[%clk
0:02:23.3]} 13. a5 {[%clk 0:02:51.1]} 13... O-O-O {[%clk 0:02:20]} 14. Ba3
{[%clk 0:02:51.6]} 14... Kb8 {[%clk 0:02:19.6]} 15. Bc5 {[%clk 0:02:52.5]} 15...
Ka8 {[%clk 0:02:19.2]} 16. Qd2 {[%clk 0:02:52.4]} 16... g5 {[%clk 0:02:12.8]}
17. Reb1 {[%clk 0:02:53.4]} 17... f6 {[%clk 0:01:59.9]} 18. exf6 {[%clk
0:02:52.9]} 18... Bxf6 {[%clk 0:02:00.9]} 19. Rb2 {[%clk 0:02:52.4]} 19... g4
{[%clk 0:01:55.9]} 20. hxg4 {[%clk 0:02:51.9]} 20... Bxg4 {[%clk 0:01:57.8]} 21.
Nh2 {[%clk 0:02:50.9]} 21... Bf5 {[%clk 0:01:53.3]} 22. Rab1 {[%clk 0:02:52.1]}
22... Rb8 {[%clk 0:01:53]} 23. Be2 {[%clk 0:02:17.7]} 23... Rhg8 {[%clk
0:01:42.7]} 24. Bf3 {[%clk 0:02:18.8]} 24... Be4 {[%clk 0:01:43.1]} 25. Bxe4
{[%clk 0:02:13.7]} 25... dxe4 {[%clk 0:01:44]} 26. Qe2 {[%clk 0:02:07.7]} 26...
Qd5 {[%clk 0:01:28.2]} 27. Nf1 {[%clk 0:02:09]} 27... Nxa5 {[%clk 0:01:17.8]}
28. Ra2 {[%clk 0:02:09.4]} 28... b6 {[%clk 0:01:17.1]} 29. Ne3 {[%clk
0:02:03.9]} 29... Qe6 {[%clk 0:01:10.3]} 30. Bb4 {[%clk 0:02:02.9]} 30... Bg5
{[%clk 0:01:08]} 31. Bxa5 {[%clk 0:02:00.5]} 31... Bxe3 {[%clk 0:01:07.3]} 32.
Qxe3 {[%clk 0:01:57.6]} 32... bxa5 {[%clk 0:01:07.4]} 33. Rxb8+ {[%clk
0:01:44.5]} 33... Kxb8 {[%clk 0:01:07.1]} 34. Rxa5 {[%clk 0:01:46.2]} 34... Qg4
{[%clk 0:01:06.3]} 35. g3 {[%clk 0:01:43.8]} 35... h5 {[%clk 0:00:41.3]} 36. d5
{[%clk 0:01:43.2]} 36... Qd7 {[%clk 0:00:21.2]} 37. Qf4+ {[%clk 0:01:44.4]}
37... Ka8 {[%clk 0:00:17]} 38. Qxe4 {[%clk 0:01:44.8]} 38... Rg4 {[%clk
0:00:18.1]} 39. Qe5 {[%clk 0:01:32.2]} 39... h4 {[%clk 0:00:17.7]} 40. d6 {[%clk
0:01:33.6]} 40... exd6 {[%clk 0:00:16.6]} 41. Qd5+ {[%clk 0:01:34.5]} 41... Qb7
{[%clk 0:00:16.1]} 42. Qe6 {[%clk 0:01:33.2]} 42... Re4 {[%clk 0:00:06.5]} 43.
Qg8+ {[%clk 0:01:29.8]} 43... Qb8 {[%clk 0:00:07.9]} 44. Qd5+ {[%clk 0:00:59.7]}
44... Qb7 {[%clk 0:00:08.7]} 45. Kg2 {[%clk 0:01:00]} 45... hxg3 {[%clk
0:00:05.3]} 46. Kxg3 {[%clk 0:01:01.9]} 46... Qxd5 {[%clk 0:00:05.7]} 47. Rxd5
{[%clk 0:01:03.8]} 47... Re2 {[%clk 0:00:07.1]} 48. Rd4 {[%clk 0:01:03.4]} 48...
Rxc2 {[%clk 0:00:08]} 49. Rxc4 {[%clk 0:01:04.7]} 49... d5 {[%clk 0:00:08.7]}
50. Rc5 {[%clk 0:01:06.1]} 50... Kb7 {[%clk 0:00:08.3]} 51. f4 {[%clk 0:01:05]}
51... Kb6 {[%clk 0:00:08.6]} 52. Rxd5 {[%clk 0:01:06.6]} 52... Rxc3+ {[%clk
0:00:09.6]} 53. Kg4 {[%clk 0:01:08.2]} 53... a5 {[%clk 0:00:11]} 54. Rd8 {[%clk
0:01:07.6]} 54... Kb5 {[%clk 0:00:07.4]} 55. f5 {[%clk 0:01:08.9]} 55... Rc6
{[%clk 0:00:06.4]} 56. Rb8+ {[%clk 0:01:08.3]} 56... Kc4 {[%clk 0:00:06.4]} 57.
Rb1 {[%clk 0:01:09.5]} 57... Ra6 {[%clk 0:00:05.7]} 58. Kg5 {[%clk 0:01:09.6]}
58... a4 {[%clk 0:00:06.8]} 59. f6 {[%clk 0:00:51.3]} 59... Ra8 {[%clk
0:00:07.3]} 60. f7 {[%clk 0:00:50.1]} 60... a3 {[%clk 0:00:07.5]} 61. Ra1 {[%clk
0:00:51.1]} 61... Kb3 {[%clk 0:00:08.4]} 62. Rh1 {[%clk 0:00:51.7]} 62... a2
{[%clk 0:00:09]} 63. Rh3+ {[%clk 0:00:53.1]} 63... Kb2 {[%clk 0:00:10.3]} 64.
Rh2+ {[%clk 0:00:54.7]} 64... Kb1 {[%clk 0:00:11.8]} 65. Rh1+ {[%clk 0:00:56.6]}
65... Kb2 {[%clk 0:00:13]} 66. Rh2+ {[%clk 0:00:57.9]} 66... Kb1 {[%clk
0:00:14.3]} 67. Rh1+ {[%clk 0:00:59.6]} 67... Kb2 {[%clk 0:00:15.7]} 68. Kg6
{[%clk 0:01:01.5]} 68... a1=Q {[%clk 0:00:15]} 69. Rxa1 {[%clk 0:01:03]} 69...
Kxa1 {[%clk 0:00:15.8]} 70. Kg7 {[%clk 0:01:04.9]} 70... Ra7 {[%clk 0:00:16.9]}
71. Kg8 {[%clk 0:01:06.3]} 71... Rxf7 {[%clk 0:00:18.3]} 72. Kxf7 {[%clk
0:01:08.2]} 1/2-1/2

[Event "*** Titled Tuesday Blitz"]
[Site "Chess.com"]
[Date "2019.07.02"]
[Round "1"]
[White "Samantha_Ross"]
[Black "marcodobrikov"]
[Result "1/2-1/2"]
[WhiteElo "2016"]
[BlackElo "2498"]
[TimeControl "180+2"]
[EndTime "13:10:08 PDT"]
[Termination "Game drawn - insufficient material"]

1. e4 {[%clk 0:03:01.3]} 1... c5 {[%clk 0:03:00.6]} 2. Nf3 {[%clk 0:03:02.7]}
2... d6 {[%clk 0:03:01.8]} 3. d4 {[%clk 0:03:04.2]} 3... cxd4 {[%clk 0:03:03.7]}
4. Nxd4 {[%clk 0:03:06.1]} 4... Nf6 {[%clk 0:03:04.6]} 5. Nc3 {[%clk 0:03:07.6]}
5... a6 {[%clk 0:03:05.6]} 6. Be3 {[%clk 0:03:08.6]} 6... e5 {[%clk 0:03:05.6]}
7. Nb3 {[%clk 0:03:08.9]} 7... Be6 {[%clk 0:03:04.8]} 8. Nd5 {[%clk 0:03:10.4]}
8... Nbd7 {[%clk 0:02:57.9]} 9. Bg5 {[%clk 0:02:53]} 9... Bxd5 {[%clk
0:02:56.2]} 10. exd5 {[%clk 0:02:52.3]} 10... Be7 {[%clk 0:02:53.4]} 11. c4
{[%clk 0:02:49.7]} 11... O-O {[%clk 0:02:53]} 12. Bxf6 {[%clk 0:02:50.4]} 12...
Bxf6 {[%clk 0:02:51.5]} 13. Be2 {[%clk 0:02:52]} 13... Be7 {[%clk 0:02:48.8]}
14. O-O {[%clk 0:02:51.3]} 14... f5 {[%clk 0:02:49]} 15. f4 {[%clk 0:02:38.2]}
15... e4 {[%clk 0:02:39.5]} 16. Kh1 {[%clk 0:02:37.4]} 16... Bf6 {[%clk
0:02:37.3]} 17. Nd4 {[%clk 0:02:28.2]} 17... Bxd4 {[%clk 0:02:35.8]} 18. Qxd4
{[%clk 0:02:30.1]} 18... Qb6 {[%clk 0:02:33.6]} 19. Qxb6 {[%clk 0:02:26.8]}
19... Nxb6 {[%clk 0:02:34.2]} 20. b3 {[%clk 0:02:20.2]} 20... Nd7 {[%clk
0:02:33.5]} 21. g4 {[%clk 0:02:19.9]} 21... g6 {[%clk 0:02:32.9]} 22. Rg1 {[%clk
0:02:06.8]} 22... Kf7 {[%clk 0:02:17.9]} 23. gxf5 {[%clk 0:02:07.2]} 23... gxf5
{[%clk 0:02:19.8]} 24. Rg5 {[%clk 0:02:08]} 24... Kf6 {[%clk 0:02:17]} 25. Rag1
{[%clk 0:02:09]} 25... Rae8 {[%clk 0:02:02.3]} 26. Rh5 {[%clk 0:02:02.7]} 26...
Rg8 {[%clk 0:01:38.5]} 27. Rxh7 {[%clk 0:01:58.2]} 27... Rxg1+ {[%clk
0:01:38.6]} 28. Kxg1 {[%clk 0:01:59.6]} 28... Re7 {[%clk 0:01:38.4]} 29. Rh6+
{[%clk 0:01:41.3]} 29... Kg7 {[%clk 0:01:33.1]} 30. Rxd6 {[%clk 0:01:41.6]}
30... Nc5 {[%clk 0:01:18.5]} 31. Bh5 {[%clk 0:01:22.7]} 31... Nd3 {[%clk
0:01:09.9]} 32. Bg6 {[%clk 0:01:20.5]} 32... e3 {[%clk 0:01:08.1]} 33. Bh5
{[%clk 0:00:57.9]} 33... Nxf4 {[%clk 0:01:08.5]} 34. Bf3 {[%clk 0:00:58.7]}
34... e2 {[%clk 0:01:08.8]} 35. Bxe2 {[%clk 0:00:58.1]} 35... Nxe2+ {[%clk
0:01:08.1]} 36. Kf2 {[%clk 0:00:59.5]} 36... Nc3 {[%clk 0:01:07.8]} 37. Rb6
{[%clk 0:00:39.1]} 37... Nxa2 {[%clk 0:00:54]} 38. c5 {[%clk 0:00:37.4]} 38...
Nc3 {[%clk 0:00:53.1]} 39. c6 {[%clk 0:00:36.6]} 39... bxc6 {[%clk 0:00:47.2]}
40. dxc6 {[%clk 0:00:36.6]} 40... Rc7 {[%clk 0:00:28.5]} 41. Rb7 {[%clk
0:00:23.7]} 41... Nd5 {[%clk 0:00:27.6]} 42. Kf3 {[%clk 0:00:24.4]} 42... Kf6
{[%clk 0:00:28.1]} 43. Rxc7 {[%clk 0:00:25.8]} 43... Nxc7 {[%clk 0:00:29]} 44.
h4 {[%clk 0:00:23]} 44... Ke5 {[%clk 0:00:27.4]} 45. h5 {[%clk 0:00:23.8]} 45...
Ne6 {[%clk 0:00:27]} 46. h6 {[%clk 0:00:21.4]} 46... Kd6 {[%clk 0:00:23.3]} 47.
Ke3 {[%clk 0:00:21.2]} 47... Nf8 {[%clk 0:00:23.1]} 48. Kf4 {[%clk 0:00:21.5]}
48... Kxc6 {[%clk 0:00:23.9]} 49. Kxf5 {[%clk 0:00:23.4]} 49... Kd7 {[%clk
0:00:16.7]} 50. Kf6 {[%clk 0:00:20.6]} 50... Ke8 {[%clk 0:00:17.6]} 51. Ke5
{[%clk 0:00:19.1]} 51... Ke7 {[%clk 0:00:17.5]} 52. Kd5 {[%clk 0:00:20.2]} 52...
Kd7 {[%clk 0:00:18.6]} 53. Kc5 {[%clk 0:00:21.5]} 53... Kc7 {[%clk 0:00:19.5]}
54. b4 {[%clk 0:00:20.7]} 54... Kb7 {[%clk 0:00:19.8]} 55. b5 {[%clk 0:00:20.9]}
55... a5 {[%clk 0:00:20.3]} 56. b6 {[%clk 0:00:20.8]} 56... a4 {[%clk 0:00:11]}
57. Kb4 {[%clk 0:00:21.6]} 57... Kxb6 {[%clk 0:00:11.1]} 58. Kxa4 {[%clk
0:00:23.1]} 58... Kc5 {[%clk 0:00:12.3]} 59. Kb3 {[%clk 0:00:24.1]} 59... Kd6
{[%clk 0:00:14.2]} 60. Kc3 {[%clk 0:00:26]} 60... Kc5 {[%clk 0:00:16.1]} 61. Kd3
{[%clk 0:00:27.3]} 61... Kd6 {[%clk 0:00:17.1]} 62. Ke4 {[%clk 0:00:28.6]} 62...
Ke6 {[%clk 0:00:18.1]} 63. Kf4 {[%clk 0:00:29.9]} 63... Kf6 {[%clk 0:00:19.2]}
64. h7 {[%clk 0:00:31.8]} 64... Kg7 {[%clk 0:00:20.2]} 65. h8=Q+ {[%clk
0:00:32.7]} 65... Kxh8 {[%clk 0:00:21]} 1/2-1/2